bitfinex/quotes_BTCUSD_20241124
["timestamp","ask_amount","ask_price","bid_price","bid_amount"]
[1732436450456,0.00299337,98140.0,98124.0,0.1508594]
[1732436450665,0.0786,98136.0,98124.0,0.1508594]
[1732436450894,0.1284,98131.0,98124.0,0.1508594]
[1732436451104,0.0786,98130.0,98124.0,0.1508594]
[1732436451309,0.0498,98129.0,98124.0,0.1508594]
[1732436451522,0.0498,98127.0,98124.0,0.1508594]
[1732436463853,0.0498,98127.0,98125.0,0.01497585]
[1732436465656,0.0498,98127.0,98124.0,0.1508594]
[1732436469547,0.0794,98126.0,98124.0,0.1508594]
[1732436471575,0.0468,98125.0,98124.0,0.1508594]
[1732436483561,0.0485188,98125.0,98124.0,0.1508594]
[1732436490758,0.1288188,98125.0,98124.0,0.1508594]
[1732436496471,0.1288188,98125.0,98124.0,0.0008594]
[1732436496636,0.33009277,98125.0,98124.0,0.0008594]
[1732436496846,0.3288188,98125.0,98124.0,0.0008594]
[1732436501339,0.0463,98122.0,98089.0,0.047]
[1732436501572,0.04757399,98121.0,98090.0,0.00014478]
[1732436502214,0.04757399,98121.0,98108.0,0.04171515]
[1732436502422,0.04757399,98121.0,98108.0,0.0008593]
[1732436505037,0.0798,98120.0,98108.0,0.0008593]
[1732436505249,0.05107399,98119.0,98108.0,0.0008593]
[1732436505491,0.05107399,98119.0,98108.0,0.04271365]
[1732436505717,0.05107399,98119.0,98108.0,0.0008593]
[1732436506739,0.0017188,98125.0,98113.0,0.15]
[1732436506952,0.0515188,98125.0,98113.0,0.17395716]
[1732436507152,0.0515188,98125.0,98113.0,0.15]
[1732436507977,0.0515188,98125.0,98108.0,0.0008593]
[1732436508213,0.0515188,98125.0,98113.0,0.15]
[1732436508569,0.0515188,98125.0,98108.0,0.0008593]
[1732436508772,0.0515188,98125.0,98108.0,0.04140585]
[1732436509282,0.0491,98123.0,98108.0,0.0008593]
[1732436509470,0.00299264,98125.0,98108.0,0.0008593]
[1732436509471,0.2,98120.0,98108.0,0.0008593]
[1732436509685,0.0017188,98125.0,98108.0,0.0008593]
[1732436509686,0.0792,98116.0,98108.0,0.0008593]
[1732436509899,0.0792,98114.0,98108.0,0.0008593]
[1732436510150,0.05037408,98113.0,98108.0,0.0008593]
[1732436510385,0.1283,98109.0,98108.0,0.0008593]
[1732436510630,0.12957417,98109.0,98108.0,0.0008593]
[1732436515517,0.32957417,98109.0,98108.0,0.0008593]
[1732436515722,0.3283,98109.0,98108.0,0.0008593]
[1732436527250,0.862,98109.0,98108.0,0.0008593]
[1732436540147,0.002,98087.0,98049.0,0.19618042]
[1732436540359,0.0499745,98086.0,98070.0,0.00014479]
[1732436541291,0.2,98084.0,98070.0,0.00014479]
[1732436541491,0.0487,98082.0,98049.0,0.023]
[1732436541706,0.0012745,98081.0,98049.0,0.023]
[1732436541927,0.002,98079.0,98049.0,0.023]
[1732436542584,0.002,98079.0,98070.0,0.0008595]
[1732436543030,0.0793745,98078.0,98070.0,0.0008595]
[1732436543285,0.002,98075.0,98070.0,0.0008595]
[1732436545309,0.002,98075.0,98070.0,0.0417849]
[1732436546173,0.00127456,98076.0,98070.0,0.0417849]
[1732436552622,0.37107058,98071.0,98070.0,0.0417849]
[1732436552855,0.37307058,98071.0,98070.0,0.0417849]
[1732436564202,0.37107058,98071.0,98070.0,0.0417849]
[1732436565484,0.37307058,98071.0,98070.0,0.0417849]
[1732436576759,0.37307058,98071.0,98070.0,0.0008595]
[1732436578642,0.37479078,98071.0,98070.0,0.0008595]
[1732436579831,0.37479078,98071.0,98050.0,0.0008601]
[1732436579832,0.24627058,98051.0,98050.0,0.0008601]
[1732436580045,0.37627058,98051.0,98050.0,0.0008601]
[1732436580702,0.37627058,98051.0,98050.0,0.04113887]
[1732436581604,0.37627058,98051.0,98050.0,0.0008601]
[1732436583479,0.37627058,98051.0,98050.0,0.04307329]
[1732436583923,0.37627058,98051.0,98050.0,0.0008601]
[1732436588178,0.37627058,98051.0,98050.0,0.04114474]
[1732436605294,0.37427058,98051.0,98050.0,0.04114474]
[1732436605523,0.37627058,98051.0,98050.0,0.04114474]
[1732436605745,0.37627058,98051.0,98050.0,0.0008601]
[1732436612161,0.37627058,98051.0,98014.0,0.0009]
[1732436612162,0.002,98030.0,97994.0,0.023]
[1732436612620,0.002,98029.0,97994.0,0.023]
[1732436613279,0.17986149,98031.0,97995.0,0.02355357]
[1732436613498,0.17986149,98031.0,97996.0,0.023]
[1732436613993,0.002,98030.0,97994.0,0.023]
[1732436614437,0.002,98030.0,97995.0,0.03388667]
[1732436614646,0.002,98030.0,97995.0,0.04477334]
[1732436615853,0.002,98030.0,97994.0,0.023]
[1732436616308,0.002,98030.0,97985.0,0.023]
[1732436616510,0.002,98030.0,97986.0,0.97597534]
[1732436616765,0.002,98030.0,97987.0,0.907385]
[1732436618290,0.002,98030.0,97988.0,0.023]
[1732436618503,0.002,98030.0,97990.0,0.15]
[1732436618738,0.002,98030.0,97992.0,0.15]
[1732436618965,0.002,98030.0,97993.0,0.023]
[1732436619418,0.0757,98028.0,97993.0,0.023]
[1732436619640,0.00127521,98027.0,97993.0,0.023]
[1732436619854,0.00127521,98027.0,97994.0,0.30609]
[1732436620132,0.00127521,98027.0,97995.0,0.15]
[1732436620373,0.00127521,98027.0,97996.0,0.30613]
[1732436620589,0.00127521,98027.0,97997.0,0.15]
[1732436620810,0.00127521,98027.0,97999.0,0.15]
[1732436621017,0.00127521,98027.0,98001.0,0.15]
[1732436621244,0.00127521,98027.0,98003.0,0.15]
[1732436621436,0.00127521,98027.0,98005.0,0.15]
[1732436621735,0.00127521,98027.0,98007.0,0.15]
[1732436621970,0.00127521,98027.0,98009.0,0.15]
[1732436622203,0.00127521,98027.0,98011.0,0.15]
[1732436622441,0.0757,98028.0,98013.0,0.15]
[1732436622658,0.0484,98036.0,98015.0,0.15]
[1732436622869,0.2,98031.0,98016.0,0.30607]
[1732436623099,0.0484,98036.0,98016.0,0.30607]
[1732436623391,0.0757,98045.0,98017.0,0.15]
[1732436623592,0.2,98041.0,98019.0,0.15]
[1732436623821,0.2,98041.0,98017.0,0.15]
[1732436623822,0.2,98041.0,98021.0,0.15]
[1732436624074,0.2,98041.0,98022.0,0.30605]
[1732436624295,0.2,98041.0,98023.0,0.15]
[1732436624518,0.2,98041.0,98025.0,0.15]
[1732436624732,0.2,98041.0,98026.0,0.30604]
[1732436624938,0.0757,98045.0,98026.0,0.30604]
[1732436625166,0.2757,98045.0,98026.0,0.30604]
[1732436625392,0.0757,98045.0,98026.0,0.30604]
[1732436625835,0.2,98046.0,98027.0,0.15]
[1732436626061,0.2,98046.0,98028.0,0.30604]
[1732436626277,0.0774198,98051.0,98029.0,0.15]
[1732436626548,0.0774198,98051.0,98031.0,0.15]
[1732436626766,0.0774198,98051.0,98032.0,0.30602]
[1732436626982,0.2,98046.0,98033.0,0.15]
[1732436627172,0.2,98046.0,98034.0,0.30602]
[1732436628618,0.0774198,98051.0,98034.0,0.30602]
[1732436628815,0.2774198,98051.0,98034.0,0.30602]
[1732436629044,0.0774198,98051.0,98034.0,0.30602]
[1732436630345,0.0774198,98051.0,98034.0,0.34736391]
[1732436630556,0.0774198,98051.0,98035.0,0.15]
[1732436630772,0.0017198,98051.0,98037.0,0.15]
[1732436631018,0.0017198,98051.0,98039.0,0.15]
[1732436631247,0.0017198,98051.0,98041.0,0.15]
[1732436631441,0.0017198,98051.0,98042.0,0.30599]
[1732436632684,0.0017198,98051.0,98043.0,0.15]
[1732436632926,0.0017198,98051.0,98045.0,0.15]
[1732436633147,0.0017198,98051.0,98046.0,0.30598]
[1732436634965,0.0017198,98051.0,98047.0,0.15]
[1732436635156,0.0017198,98051.0,98048.0,0.30597]
[1732436637149,0.0017198,98051.0,98049.0,0.15]
[1732436637380,0.0017198,98051.0,98050.0,0.30597]
[1732436637612,0.0017198,98051.0,98050.0,0.09077921]
[1732436640777,0.0494198,98051.0,98050.0,0.09077921]
[1732436642326,0.1264198,98051.0,98050.0,0.09077921]
[1732436648719,0.1264198,98051.0,98050.0,0.09163861]
[1732436654949,0.1264198,98051.0,98017.0,0.0001448]
[1732436654950,0.1264198,98051.0,98011.0,0.00045431]
[1732436655251,0.1264198,98051.0,98012.0,1.0810642]
[1732436655472,0.1264198,98051.0,98013.0,0.92798462]
[1732436655912,0.1264198,98051.0,98014.0,0.888466]
[1732436656117,0.1264198,98051.0,98015.0,0.00090862]
[1732436656558,0.1264198,98051.0,98016.0,0.930246]
[1732436656765,0.1264198,98051.0,98016.0,1.23717462]
[1732436656959,0.1264198,98051.0,98017.0,1.03684262]
[1732436657199,0.1264198,98051.0,98019.0,0.15]
[1732436657420,0.1264198,98051.0,98021.0,0.15]
[1732436657554,0.1264198,98051.0,98023.0,0.15]
[1732436657768,0.1264198,98051.0,98024.0,0.30605]
[1732436658296,0.1264198,98051.0,98025.0,0.15090862]
[1732436658710,0.1264198,98051.0,98027.0,0.15]
[1732436659118,0.1264198,98051.0,98029.0,0.15]
[1732436659492,0.1264198,98051.0,98031.0,0.15]
[1732436659721,0.1264198,98051.0,98033.0,0.15]
[1732436659916,0.1264198,98051.0,98035.0,0.15]
[1732436660330,0.1264198,98051.0,98037.0,0.15]
[1732436660674,0.1264198,98051.0,98039.0,0.15]
[1732436660880,0.1264198,98051.0,98041.0,0.15]
[1732436661074,0.1264198,98051.0,98024.0,0.04117785]
[1732436661075,0.1264198,98051.0,98043.0,0.15]
[1732436661285,0.1264198,98051.0,98045.0,0.15]
[1732436661516,0.1264198,98051.0,98047.0,0.15]
[1732436661717,0.1264198,98051.0,98048.0,0.30597]
[1732436665456,0.1264198,98051.0,98048.0,0.3468967]
[1732436669139,0.1264198,98051.0,98049.0,0.15]
[1732436669357,0.1264198,98051.0,98050.0,0.30597]
[1732436670486,0.1264198,98051.0,98050.0,0.07582977]
[1732436671409,0.1264198,98051.0,98050.0,0.07530477]
[1732436683882,0.1264198,98051.0,98048.0,0.0409267]
[1732436684162,0.047,98050.0,98048.0,0.0409267]
[1732436684358,0.047,98050.0,98012.0,0.1014732]
[1732436684636,0.047,98050.0,98016.0,0.0525]
[1732436684867,0.047,98050.0,98017.0,0.0489707]
[1732436685064,0.047,98050.0,98017.0,0.6676797]
[1732436685379,0.047,98050.0,98018.0,0.284632]
[1732436685561,0.047,98050.0,98019.0,0.30606]
[1732436686019,0.047,98050.0,98020.0,0.15]
[1732436686254,0.047,98050.0,98022.0,0.15]
[1732436686492,0.047,98050.0,98024.0,0.15]
[1732436686730,0.047,98050.0,98026.0,0.15]
[1732436686956,0.047,98050.0,98028.0,0.15]
[1732436687184,0.047,98050.0,98030.0,0.15]
[1732436687420,0.047,98050.0,98032.0,0.15]
[1732436687661,0.047,98050.0,98034.0,0.15]
[1732436687888,0.047,98050.0,98035.0,0.30601]
[1732436688144,0.047,98050.0,98036.0,0.15]
[1732436688356,0.047,98050.0,98038.0,0.15]
[1732436688593,0.047,98050.0,98040.0,0.15]
[1732436688812,0.047,98050.0,98041.0,0.30599]
[1732436689042,0.047,98050.0,98042.0,0.15]
[1732436689285,0.047,98050.0,98044.0,0.15]
[1732436689510,0.047,98050.0,98046.0,0.15]
[1732436691760,0.0755,98049.0,98046.0,0.15]
[1732436692007,0.047,98048.0,98046.0,0.15]
[1732436692683,0.047,98048.0,98046.0,0.19090583]
[1732436699890,0.0811,98047.0,98046.0,0.19090583]
[1732436700097,0.1273,98047.0,98046.0,0.19090583]
[1732436707828,0.1273,98047.0,98046.0,0.22007278]
[1732436708537,0.1273,98047.0,98046.0,0.22093218]
[1732436711078,0.09113,98047.0,98046.0,0.22093218]
[1732436711283,0.09113,98047.0,98046.0,0.52691218]
[1732436713185,0.09113,98047.0,98046.0,0.24832432]
[1732436715815,0.09113,98047.0,98046.0,0.28976943]
[1732436719193,0.07334358,98047.0,98046.0,0.28976943]
[1732436720239,0.07334358,98047.0,98046.0,0.43976943]
[1732436722574,0.07334358,98047.0,98046.0,0.44062883]
[1732436722745,0.07506238,98047.0,98046.0,0.44062883]
[1732436727698,0.0463,98060.0,98046.0,0.44062883]
[1732436727917,0.2,98089.0,98046.0,0.44062883]
[1732436727918,0.2,98084.0,98047.0,0.15]
[1732436728132,0.2017202,98076.0,98049.0,0.15]
[1732436728348,0.0017202,98076.0,98051.0,0.173]
[1732436728633,0.0017202,98076.0,98052.0,0.36362]
[1732436728874,0.0017202,98076.0,98053.0,0.173]
[1732436729221,0.0017202,98076.0,98046.0,0.04230451]
[1732436729222,0.0017202,98076.0,98055.0,0.173]
[1732436729454,0.0017202,98076.0,98057.0,0.173]
[1732436729650,0.0017202,98076.0,98059.0,0.173]
[1732436730057,0.0017202,98076.0,98061.0,0.15]
[1732436730279,0.0017202,98076.0,98063.0,0.15]
[1732436730479,0.0017202,98076.0,98064.0,0.36358]
[1732436730588,0.0017202,98076.0,98065.0,0.15]
[1732436730790,0.0017202,98076.0,98067.0,0.15]
[1732436731005,0.0463,98069.0,98068.0,0.51357]
[1732436733327,0.0017202,98071.0,98068.0,0.51357]
[1732436733537,0.0017202,98071.0,98069.0,0.15]
[1732436733748,0.0017202,98071.0,98069.0,0.51357]
[1732436745566,0.0017202,98071.0,98069.0,0.53657]
[1732436745810,0.0463,98074.0,98070.0,0.023]
[1732436746044,0.0463,98074.0,98072.0,0.173]
[1732436746285,0.0463,98074.0,98073.0,0.53655]
[1732436748641,0.0463,98074.0,98073.0,0.51355]
[1732436756881,0.124,98074.0,98073.0,0.51355]
[1732436758201,0.1257186,98074.0,98073.0,0.51355]
[1732436785243,0.1257186,98074.0,98073.0,0.06263772]
[1732436788778,0.1257186,98074.0,98068.0,0.04042236]
[1732436789198,0.1257186,98074.0,98071.0,0.5]
[1732436791067,0.00127458,98073.0,98071.0,0.5]
[1732436793057,0.00127458,98073.0,98072.0,0.15]
[1732436800553,0.1257186,98074.0,98072.0,0.15]
[1732436800755,0.0480186,98074.0,98072.0,0.15]
[1732436801413,0.00025815,98073.0,98072.0,0.15]
[1732436806017,0.00111745,98073.0,98072.0,0.15]
[1732436806226,0.00111745,98073.0,98072.0,0.45834738]
[1732436808894,0.00111745,98073.0,98072.0,0.14995369]
[1732436816446,0.00111745,98073.0,98072.0,0.4585179]
[1732436818983,0.00111745,98073.0,98072.0,0.14995369]
[1732436841389,0.13091745,98073.0,98072.0,0.15167229]
[1732436842863,0.13091745,98073.0,98072.0,0.1810539]
[1732436847682,0.13091745,98073.0,98072.0,0.48957039]
[1732436849373,0.13091745,98073.0,98072.0,0.1810539]
[1732436857820,0.13091745,98073.0,98072.0,0.48961199]
[1732436858220,0.13091745,98073.0,98072.0,0.1810539]
[1732436869859,0.13091745,98073.0,98072.0,0.18110021]
[1732436870099,0.13219205,98073.0,98072.0,0.1517186]
[1732436874584,0.13419205,98073.0,98072.0,0.1517186]
[1732436876105,0.33419205,98073.0,98072.0,0.1517186]
[1732436876305,0.33291745,98073.0,98072.0,0.1517186]
[1732436879431,0.53291745,98073.0,98072.0,0.1517186]
[1732436879864,0.53291745,98073.0,98072.0,0.0017186]
[1732436880073,0.53091745,98073.0,98072.0,0.1517186]
[1732436880266,0.53291745,98073.0,98072.0,0.1517186]
[1732436880506,0.53091745,98073.0,98072.0,0.1517186]
[1732436880694,0.3323,98072.0,98071.0,0.39201429]
[1732436881138,0.3343,98072.0,98071.0,0.39201429]
[1732436884805,0.5343,98072.0,98071.0,0.39201429]
[1732436887176,0.5343,98072.0,98071.0,0.09433886]
[1732436887656,0.5593,98072.0,98071.0,0.09433886]
[1732436887850,0.5593,98072.0,98071.0,0.09519816]
[1732436889031,0.5593,98072.0,98071.0,0.04519816]
[1732436889719,0.5573,98072.0,98071.0,0.04519816]
[1732436890792,1.091,98072.0,98071.0,0.04519816]
[1732436892494,1.291,98072.0,98071.0,0.04519816]
[1732436896440,1.293,98072.0,98071.0,0.04519816]
[1732436896855,1.291,98072.0,98071.0,0.04519816]
[1732436899796,1.2927186,98072.0,98071.0,0.04519816]
[1732436908257,1.0927186,98072.0,98071.0,0.04519816]
[1732436908991,0.5360186,98072.0,98071.0,0.04519816]
[1732436909222,0.4037186,98072.0,98071.0,0.04519816]
[1732436909452,0.4017186,98072.0,98071.0,0.08603097]
[1732436909667,0.4037186,98072.0,98071.0,0.08453097]
[1732436910548,0.4017186,98072.0,98071.0,0.08453097]
[1732436911163,0.4037186,98072.0,98071.0,0.08453097]
[1732436912649,0.4017186,98072.0,98071.0,0.08453097]
[1732436912860,0.4037186,98072.0,98071.0,0.08453097]
[1732436913545,0.2037186,98072.0,98071.0,0.08453097]
[1732436914675,0.0037186,98072.0,98071.0,0.08453097]
[1732436914914,0.2037186,98072.0,98071.0,0.08453097]
[1732436915138,0.4037186,98072.0,98071.0,0.08453097]
[1732436915782,0.2037186,98072.0,98071.0,0.08453097]
[1732436916626,0.4037186,98072.0,98071.0,0.08453097]
[1732436920891,0.2037186,98072.0,98071.0,0.08453097]
[1732436921075,0.0037186,98072.0,98071.0,0.08453097]
[1732436921277,0.2037186,98072.0,98071.0,0.08453097]
[1732436921900,0.0037186,98072.0,98071.0,0.08453097]
[1732436922062,0.2037186,98072.0,98071.0,0.08453097]
[1732436922481,0.0037186,98072.0,98071.0,0.08453097]
[1732436922701,0.2037186,98072.0,98071.0,0.08453097]
[1732436923482,0.4037186,98072.0,98071.0,0.08453097]
[1732436926643,0.4037186,98072.0,98071.0,0.04369816]
[1732436939812,0.4017186,98072.0,98071.0,0.04369816]
[1732436940020,0.4037186,98072.0,98071.0,0.04369816]
[1732436958447,0.4017186,98072.0,98071.0,0.04369816]
[1732436958860,0.4037186,98072.0,98071.0,0.04369816]
[1732436959716,0.4490186,98072.0,98071.0,0.04369816]
[1732436961749,0.5261186,98072.0,98071.0,0.04369816]
[1732436963440,0.002,98052.0,98030.0,0.15]
[1732436963874,0.202,98052.0,98030.0,0.15]
[1732436965652,0.202,98052.0,98051.0,0.54034731]
[1732436968294,0.202,98052.0,98051.0,0.69034731]
[1732436970015,0.202,98052.0,98051.0,0.69120661]
[1732436971602,0.202,98052.0,98051.0,0.54120661]
[1732436974166,0.2,98052.0,98051.0,0.54120661]
[1732436974811,0.202,98052.0,98051.0,0.54120661]
[1732436982611,0.3279,98052.0,98051.0,0.54120661]
[1732436992459,0.202,98052.0,98051.0,0.54120661]
[1732436997171,0.202,98052.0,98051.0,0.27029709]
[1732437002591,0.2,98052.0,98051.0,0.27029709]
[1732437003043,0.202,98052.0,98051.0,0.27029709]
[1732437007876,0.2,98052.0,98051.0,0.27029709]
[1732437008705,0.2,98052.0,98051.0,0.04120661]
[1732437012642,0.20127492,98052.0,98051.0,0.04120661]
[1732437013051,0.20327492,98052.0,98051.0,0.04120661]
[1732437013501,0.202,98052.0,98051.0,0.04120661]
[1732437014205,0.2,98052.0,98051.0,0.04120661]
[1732437014852,0.202,98052.0,98051.0,0.04120661]
[1732437016643,0.203719,98052.0,98051.0,0.04120661]
[1732437016860,0.403719,98052.0,98051.0,0.04120661]
[1732437017082,0.533819,98052.0,98051.0,0.0008593]
[1732437017539,1.067519,98052.0,98051.0,0.0008593]
[1732437020252,1.065519,98052.0,98051.0,0.0008593]
[1732437020523,1.067519,98052.0,98051.0,0.0008593]
[1732437022782,1.090519,98052.0,98051.0,0.0008593]
[1732437023065,0.802,98048.0,98047.0,0.13434729]
[1732437023279,1.4907,98048.0,98047.0,0.13434729]
[1732437026519,1.4887,98048.0,98047.0,0.13434729]
[1732437027620,1.4907,98048.0,98047.0,0.13434729]
[1732437028570,1.58315594,98048.0,98047.0,0.13434729]
[1732437028784,1.58315594,98048.0,98047.0,0.13520679]
[1732437028785,1.4907,98048.0,98047.0,0.13520679]
[1732437029934,1.4887,98048.0,98047.0,0.13520679]
[1732437030614,1.4872,98048.0,98047.0,0.13520679]
[1732437035900,1.4852,98048.0,98047.0,0.13520679]
[1732437036637,1.4872,98048.0,98047.0,0.13520679]
[1732437037824,1.4872,98048.0,98047.0,0.1348063]
[1732437038038,1.4872,98048.0,98047.0,0.13445647]
[1732437038927,1.6392,98048.0,98047.0,0.13445647]
[1732437039400,1.6352,98048.0,98047.0,0.13445647]
[1732437039630,1.6392,98048.0,98047.0,0.13445647]
[1732437040083,1.74306805,98048.0,98047.0,0.13445647]
[1732437041402,1.73906805,98048.0,98047.0,0.13445647]
[1732437041631,1.74478645,98048.0,98047.0,0.13445647]
[1732437043676,1.6409184,98048.0,98047.0,0.13445647]
[1732437044155,0.6005,98019.0,98018.0,0.0008594]
[1732437050084,0.99888413,98019.0,98018.0,0.0008594]
[1732437050968,1.04868413,98019.0,98018.0,0.0008594]
[1732437053159,1.27168413,98019.0,98018.0,0.0008594]
[1732437053375,1.35258413,98019.0,98018.0,0.0008594]
[1732437055163,1.15058413,98019.0,98018.0,0.0008594]
[1732437055374,1.35058413,98019.0,98018.0,0.0008594]
[1732437056474,1.15258413,98019.0,98018.0,0.0008594]
[1732437056685,1.25645218,98019.0,98018.0,0.0008594]
[1732437056903,1.15258413,98019.0,98018.0,0.0008594]
[1732437057566,0.1985,97987.0,97985.0,0.04106096]
[1732437058466,0.1985,97987.0,97985.0,0.00014479]
[1732437058684,0.1985,97987.0,97958.0,0.02505116]
[1732437059181,0.1985,97987.0,97966.0,0.0567575]
[1732437059391,0.1985,97987.0,97966.0,0.0149117]
[1732437059606,0.1985,97987.0,97970.0,0.15]
[1732437060038,0.1985,97987.0,97966.0,0.0149117]
[1732437060340,0.1985,97987.0,97970.0,0.15]
[1732437060568,0.1985,97987.0,97979.0,0.15]
[1732437060780,0.1985,97987.0,97979.0,0.1248]
[1732437061213,0.1985,97987.0,97980.0,0.15]
[1732437063538,0.1985,97987.0,97980.0,0.19113638]
[1732437065155,0.1985,97987.0,97980.0,0.19026864]
[1732437065612,0.002,97985.0,97980.0,0.19026864]
[1732437065856,0.1985,97987.0,97979.0,0.06994405]
[1732437066092,0.002,97986.0,97979.0,0.06994405]
[1732437066811,0.1985,97987.0,97979.0,0.06994405]
[1732437067226,0.1985,97987.0,97979.0,0.11055155]
[1732437068570,0.002,97985.0,97979.0,0.11055155]
[1732437069258,0.2,97982.0,97979.0,0.11055155]
[1732437069532,0.002,97980.0,97979.0,0.11055155]
[1732437069986,0.002,97981.0,97979.0,0.11055155]
[1732437070940,0.002,97981.0,97951.0,0.023]
[1732437071664,0.002,97980.0,97951.0,0.023]
[1732437072579,0.002,97980.0,97945.0,0.023]
[1732437073274,0.002,97980.0,97944.0,0.0015]
[1732437073275,0.002,97980.0,97944.0,0.023]
[1732437073508,0.0794,97979.0,97946.0,0.023]
[1732437073734,0.002,97980.0,97946.0,0.023]
[1732437074168,0.002,97980.0,97948.0,0.023]
[1732437074406,0.002,97980.0,97950.0,0.023]
[1732437074636,0.002,97974.0,97952.0,0.023]
[1732437075072,0.1985,97977.0,97952.0,0.023]
[1732437075973,0.1985,97975.0,97952.0,0.023]
[1732437078220,0.0461,97974.0,97952.0,0.023]
[1732437078935,0.0461,97974.0,97952.0,0.06522166]
[1732437079150,0.0461,97974.0,97952.0,0.21522166]
[1732437079369,0.0461,97974.0,97952.0,0.173]
[1732437080290,0.0461,97974.0,97952.0,0.023]
[1732437081900,0.1227,97974.0,97952.0,0.21351669]
[1732437082375,0.1227,97974.0,97952.0,0.173]
[1732437083120,0.1227,97974.0,97952.0,0.023]
[1732437085559,0.0498,97973.0,97952.0,0.023]
[1732437086276,0.0498,97973.0,97952.0,0.21388446]
[1732437086500,0.0498,97973.0,97952.0,0.173]
[1732437088317,0.0498,97970.0,97952.0,0.173]
[1732437088562,0.002,97968.0,97952.0,0.023]
[1732437088828,0.0498,97967.0,97952.0,0.023]
[1732437091819,0.002,97968.0,97953.0,0.0521]
[1732437092058,0.0498,97972.0,97952.0,0.15]
[1732437093245,0.0498,97972.0,97952.0,0.023]
[1732437093969,0.002,97965.0,97952.0,0.023]
[1732437094198,0.0498,97964.0,97952.0,0.023]
[1732437098341,0.0498,97964.0,97953.0,0.0266746]
[1732437099740,0.04952951,97964.0,97953.0,0.0266746]
[1732437100676,0.04952951,97964.0,97954.0,0.023]
[1732437101783,0.04952951,97964.0,97953.0,0.023]
[1732437102423,0.04952951,97964.0,97952.0,0.023]
[1732437107502,0.0831,97963.0,97952.0,0.023]
[1732437109951,0.03434476,97963.0,97952.0,0.023]
[1732437110204,0.0498,97962.0,97952.0,0.023]
[1732437113333,0.0498,97962.0,97951.0,0.04216171]
[1732437113561,0.0498,97962.0,97961.0,0.15]
[1732437113816,0.0498,97962.0,97951.0,0.04216171]
[1732437115397,0.0498,97962.0,97961.0,0.15]
[1732437115581,0.0498,97962.0,97951.0,0.04216171]
[1732437117366,0.0498,97962.0,97952.0,0.023]
[1732437121200,0.0498,97962.0,97948.0,0.15]
[1732437121201,0.0498,97962.0,97948.0,0.11516171]
[1732437121680,0.0498,97962.0,97939.0,0.0521]
[1732437123236,0.0498,97962.0,97940.0,0.023]
[1732437123710,0.0498,97962.0,97950.0,0.023]
[1732437123911,0.0799202,97977.0,97959.0,0.0015]
[1732437124163,0.0017202,97977.0,97969.0,0.023]
[1732437125040,0.0782,97990.0,97969.0,0.023]
[1732437125275,0.0782,97990.0,97969.0,0.06490764]
[1732437125527,0.2,98035.0,97969.0,0.06490764]
[1732437125528,0.2,98007.0,97975.0,0.0015]
[1732437125764,0.0782,98001.0,97976.0,0.023]
[1732437126005,0.0782,98001.0,97978.0,0.023]
[1732437126244,0.0782,98001.0,97980.0,0.023]
[1732437126452,0.0782,98001.0,97983.0,0.0015]
[1732437126702,0.0782,98001.0,97984.0,0.023]
[1732437129006,0.0782,98001.0,97986.0,0.173]
[1732437129211,0.0782,98001.0,97986.0,0.47917]
[1732437131780,0.0464,98003.0,97986.0,0.47917]
[1732437136509,0.0464,98003.0,97986.0,0.47907]
[1732437143334,0.0464,98003.0,97986.0,0.48512134]
[1732437145401,0.0464,98003.0,97986.0,0.47907]
[1732437148586,0.0491,97991.0,97986.0,0.47907]
[1732437148806,0.0332561,97991.0,97986.0,0.47907]
[1732437150638,0.0121961,97991.0,97986.0,0.47907]
[1732437155043,0.0755361,97994.0,97986.0,0.47907]
[1732437158016,0.1220361,97994.0,97986.0,0.47907]
[1732437159454,0.1220361,97994.0,97986.0,0.4799298]
[1732437159675,0.1237557,97994.0,97986.0,0.4799298]
[1732437161031,0.10432449,97994.0,97986.0,0.4799298]
[1732437166282,0.10432449,97994.0,97986.0,0.19324295]
[1732437168780,0.10432449,97994.0,97987.0,0.15]
[1732437170909,0.09040449,97994.0,97987.0,0.15]
[1732437173739,0.08764829,97994.0,97987.0,0.15]
[1732437176234,0.08764829,97994.0,97991.0,0.15]
[1732437177313,0.0737395,97994.0,97991.0,0.15]
[1732437177546,0.0737395,97994.0,97989.0,0.15]
[1732437177981,0.0737395,97994.0,97988.0,0.30877116]
[1732437178206,0.0737395,97994.0,97989.0,0.15]
[1732437179348,0.0737395,97994.0,97989.0,0.45877116]
[1732437179759,0.0737395,97994.0,97989.0,0.15]
[1732437180810,0.0547695,97994.0,97987.0,0.15]
[1732437181449,0.0422795,97994.0,97987.0,0.15]
[1732437181896,0.0352895,97994.0,97987.0,0.15]
[1732437182115,0.0282995,97994.0,97987.0,0.15]
[1732437185048,0.0079895,97994.0,97987.0,0.15]
[1732437185267,0.0799,97997.0,97987.0,0.15]
[1732437188306,0.0465,97996.0,97987.0,0.15]
[1732437190330,0.00955,97996.0,97987.0,0.15]
[1732437190570,0.00955,97996.0,97986.0,0.15389573]
[1732437191306,0.07179,97997.0,97986.0,0.15389573]
[1732437191778,0.06765726,97997.0,97986.0,0.15389573]
[1732437192016,0.05811762,97997.0,97986.0,0.15389573]
[1732437192228,0.04905809,97997.0,97986.0,0.15389573]
[1732437193126,0.04905809,97997.0,97987.0,0.15]
[1732437195650,0.0017184,97996.0,97987.0,0.15]
[1732437196964,0.02631127,97997.0,97987.0,0.15]
[1732437200104,0.00231649,97997.0,97987.0,0.15]
[1732437200949,0.01912001,97998.0,97987.0,0.15]
[1732437201855,0.2,98011.0,97987.0,0.15]
[1732437202571,0.2,98011.0,97987.0,0.1956]
[1732437203922,0.0824,98010.0,97987.0,0.1956]
[1732437204825,0.049,98009.0,97987.0,0.1956]
[1732437207464,0.049,98009.0,97987.0,0.1964591]
[1732437210183,0.049,98009.0,97987.0,0.50525487]